bitfinex/quotes_ETHUSD_20260125
["timestamp","ask_amount","ask_price","bid_price","bid_amount"]
[1769385009457,4.62039645,2819.6,2818.6,0.743]
[1769385009645,4.57039645,2819.6,2818.3,0.88705135]
[1769385009846,4.57039645,2819.6,2818.6,0.743]
[1769385010073,4.57039645,2819.6,2818.1,3.54846242]
[1769385010381,4.57039645,2819.6,2818.4,0.88702448]
[1769385010610,5.07743609,2819.5,2818.5,0.743]
[1769385011083,4.62039645,2819.5,2818.5,1.62999057]
[1769385011457,1.34858086,2820.0,2818.6,30.0]
[1769385011458,0.46203965,2820.0,2818.6,30.0]
[1769385011790,1e-08,2820.1,2818.8,30.0]
[1769385011947,1e-08,2820.1,2818.8,3.554]
[1769385012142,1e-08,2820.1,2818.6,12.244]
[1769385012366,4.62039646,2820.1,2819.0,4.271]
[1769385012581,4.62039646,2820.1,2819.1,0.743]
[1769385012582,1e-08,2820.1,2819.1,0.743]
[1769385013068,1e-08,2820.1,2819.2,0.743]
[1769385013871,1e-08,2820.1,2819.3,0.743]
[1769385014089,1e-08,2820.1,2819.4,0.743]
[1769385014446,1e-08,2820.1,2819.5,0.44397087]
[1769385014881,4.62039645,2820.9,2819.5,0.44397087]
[1769385015084,4.62039645,2820.9,2819.5,5.26028746]
[1769385015257,4.62039645,2820.9,2819.7,7.505]
[1769385015458,5.50664055,2820.9,2818.7,14.91772764]
[1769385015782,5.50664055,2820.9,2819.1,0.88680497]
[1769385015983,5.50664055,2820.9,2819.1,0.88680394]
[1769385016271,5.50664055,2820.9,2819.0,0.88681826]
[1769385016272,4.54156954,2820.7,2819.0,0.88681826]
[1769385016481,4.54156954,2820.7,2818.8,0.743]
[1769385016700,4.54156954,2820.7,2819.4,0.88670893]
[1769385017352,4.54156954,2820.7,2819.5,30.0]
[1769385018178,4.54156954,2821.1,2819.6,0.743]
[1769385018371,4.54156954,2820.9,2819.6,0.743]
[1769385018574,4.54156954,2820.9,2819.7,0.743]
[1769385019281,5.42782991,2820.9,2819.5,0.743]
[1769385019480,4.54156954,2820.9,2819.5,0.743]
[1769385019683,4.54156954,2820.7,2819.5,0.743]
[1769385021271,0.001,2820.5,2819.6,0.88665058]
[1769385021599,4.54256954,2820.5,2819.6,0.88665058]
[1769385021801,4.54256954,2820.5,2819.7,0.743]
[1769385022106,4.54256954,2820.5,2819.5,0.8866592]
[1769385022391,4.54156954,2820.3,2819.6,0.743]
[1769385023269,4.54156954,2820.3,2819.4,0.88669202]
[1769385023475,4.54156954,2820.3,2819.3,0.743]
[1769385023688,5.42800533,2820.3,2819.3,0.743]
[1769385023890,4.54156954,2820.3,2819.2,0.8867566]
[1769385024205,0.001,2820.5,2819.6,0.88664741]
[1769385024986,0.001,2820.5,2819.7,0.743]
[1769385025267,4.54256954,2820.5,2819.8,0.743]
[1769385025695,4.54256954,2820.5,2819.7,1.62961457]
[1769385026199,4.54256954,2820.5,2818.7,0.54412221]
[1769385026373,4.54256954,2820.5,2818.9,0.88685255]
[1769385026374,4.54156954,2820.3,2818.9,0.88685255]
[1769385026697,4.54156954,2820.3,2819.0,0.743]
[1769385026870,4.54156954,2820.3,2819.0,0.88683545]
[1769385027194,4.54156954,2820.3,2819.2,0.88677625]
[1769385027495,5.42800055,2820.3,2819.1,0.88680784]
[1769385027695,4.54156954,2820.1,2819.1,0.88680784]
[1769385028274,4.54156954,2820.1,2819.0,1.62981671]
[1769385028803,4.54156954,2820.1,2818.3,0.743]
[1769385028999,4.54156954,2820.1,2818.6,0.88695963]
[1769385029297,4.54156954,2820.1,2818.5,0.88697817]
[1769385029599,4.54156954,2819.7,2818.4,3.54810807]
[1769385029800,4.54156954,2819.7,2818.3,1.63003971]
[1769385029977,4.54156954,2819.7,2817.5,0.88730164]
[1769385030181,4.54156954,2819.7,2817.4,0.743]
[1769385030182,4.96609998,2819.7,2817.4,0.743]
[1769385030377,4.96609998,2819.7,2817.3,0.88735567]
[1769385030577,4.54156954,2819.5,2817.4,1.18669437]
[1769385030803,4.54156954,2819.5,2817.4,1.33103672]
[1769385031099,4.54156954,2819.5,2817.4,1.33103648]
[1769385031281,4.54156954,2819.5,2817.4,0.44369437]
[1769385031478,4.54156954,2819.3,2817.4,1.3310372]
[1769385031785,4.54156954,2819.1,2817.5,0.5978455]
[1769385032302,4.54156954,2819.1,2817.5,1.03882749]
[1769385033000,4.54156954,2819.1,2817.6,0.743]
[1769385033299,4.54156954,2819.1,2817.5,1.30535305]
[1769385033467,4.61982382,2818.9,2817.5,2.19263911]
[1769385033673,4.61982382,2818.7,2817.6,0.21926391]
[1769385033869,4.61982382,2818.7,2817.7,0.002]
[1769385035010,0.55066631,2818.8,2817.7,0.002]
[1769385035300,5.50663382,2819.1,2817.7,0.002]
[1769385035467,5.50663382,2819.1,2816.8,0.002]
[1769385035667,4.61982382,2818.7,2816.8,0.002]
[1769385035878,4.61982382,2818.7,2816.9,0.88748914]
[1769385036077,4.61982382,2818.5,2816.9,3.54997411]
[1769385036277,4.61982382,2818.5,2817.0,0.88746761]
[1769385036508,4.61982382,2818.5,2817.3,0.88735944]
[1769385036687,0.88681,2819.1,2817.3,0.88735944]
[1769385036688,4.61982382,2819.0,2817.3,0.88735944]
[1769385037083,4.61982382,2819.0,2817.4,0.743]
[1769385037398,4.61982382,2818.8,2817.4,0.743]
[1769385037699,4.61982382,2818.8,2817.5,0.743]
[1769385037700,4.61982382,2818.6,2817.5,0.743]
[1769385038070,4.61982382,2818.6,2817.6,0.743]
[1769385039103,4.61982382,2818.6,2816.8,10.002]
[1769385039306,4.61982382,2818.5,2816.8,0.002]
[1769385039614,4.61982382,2818.3,2816.8,0.002]
[1769385040471,4.61982382,2818.3,2816.9,0.743]
[1769385040671,4.61982382,2818.3,2817.0,0.743]
[1769385041679,4.61982382,2818.3,2817.1,0.88743743]
[1769385041913,4.61982382,2818.3,2817.2,0.51801872]
[1769385043630,0.55067575,2818.5,2817.3,0.88737443]
[1769385043829,5.50681038,2818.6,2817.3,0.88737443]
[1769385044029,4.61982382,2818.6,2817.4,0.743]
[1769385044437,5.50679346,2818.6,2817.4,0.743]
[1769385045445,5.50679346,2818.6,2817.0,0.88746451]
[1769385045608,5.50679346,2818.6,2817.1,0.88743677]
[1769385045609,4.61982382,2818.4,2817.1,0.88743677]
[1769385046814,5.5068591,2818.4,2817.0,0.44395779]
[1769385047131,5.5068591,2818.4,2817.0,1.33142245]
[1769385047354,5.50686144,2818.4,2817.0,0.44595779]
[1769385047634,5.50686144,2818.4,2817.0,0.88946146]
[1769385047835,4.61982382,2818.4,2817.0,0.88946146]
[1769385048137,5.50688047,2818.4,2817.1,0.743]
[1769385049814,5.50688047,2818.4,2817.0,0.002]
[1769385051143,5.50688047,2818.4,2816.8,0.002]
[1769385051333,4.61982382,2818.2,2816.8,0.002]
[1769385052011,4.61982382,2818.0,2816.8,0.002]
[1769385054942,4.61982382,2818.0,2816.5,0.002]
[1769385055147,5.48384585,2817.7,2815.5,0.002]
[1769385055342,4.61982382,2817.6,2815.6,0.88788946]
[1769385055541,4.61982382,2817.6,2815.6,0.88790996]
[1769385055722,4.61982382,2817.6,2815.5,1.6329262]
[1769385055921,4.61982382,2817.6,2815.5,0.002]
[1769385056123,4.61982382,2817.6,2815.7,0.88787528]
[1769385056321,4.61982382,2817.6,2815.5,0.88991708]
[1769385056621,4.61982382,2817.6,2815.9,1.88779886]
[1769385057031,4.61982382,2817.4,2815.9,1.0]
[1769385058275,0.88731144,2817.5,2815.9,1.0]
[1769385058276,4.61982382,2817.2,2815.9,1.0]
[1769385058956,4.61982382,2817.0,2815.9,1.0]
[1769385060068,4.61982382,2817.0,2816.1,0.002]
[1769385061049,4.61982382,2816.8,2816.1,0.001]
[1769385061551,5.50719825,2817.3,2815.9,1.00100592]
[1769385061775,0.41214055,2817.2,2815.9,1.88881862]
[1769385061989,4.61982382,2817.3,2815.9,1.00100592]
[1769385062278,4.61982382,2817.3,2815.9,1.88881898]
[1769385062495,5.50708843,2817.7,2816.0,4.48126953]
[1769385062644,5.50708843,2817.7,2815.9,1.88881898]
[1769385062845,4.61982382,2817.5,2816.0,0.54400815]
[1769385063084,4.61982382,2817.5,2816.1,0.88775256]
[1769385063280,5.52604877,2817.9,2816.1,5.31767532]
[1769385063465,4.63883881,2817.9,2816.2,4.42992276]
[1769385063658,0.001,2818.2,2816.4,4.42992276]
[1769385063869,0.55269208,2818.1,2816.5,0.44299228]
[1769385065794,0.55269208,2818.1,2816.6,0.88759497]
[1769385066663,0.001,2818.2,2816.6,6.06051773]
[1769385067064,5.52693463,2818.2,2816.6,5.31751773]
[1769385067372,4.63983881,2818.2,2816.6,6.06051773]
[1769385067572,5.52693664,2818.2,2816.6,6.06051773]
[1769385067882,5.52693664,2818.2,2816.6,1.63059497]
[1769385068083,0.90752881,2818.1,2816.7,0.56239671]
[1769385068406,0.001,2818.2,2816.7,4.99231947]
[1769385068568,4.63983881,2818.2,2816.8,0.743]
[1769385069273,5.52693277,2818.2,2816.8,0.743]
[1769385069470,5.52693277,2818.2,2816.7,0.56239671]
[1769385069685,5.52693277,2818.2,2816.7,1.30539671]
[1769385069881,5.52693277,2818.2,2816.8,0.21929917]
[1769385069882,4.63883881,2818.0,2816.8,0.21929917]
[1769385070082,4.63883881,2818.0,2816.6,0.88759319]
[1769385070274,4.63883881,2818.0,2816.5,0.44299228]
[1769385070477,0.9075222,2818.1,2816.8,0.88753023]
[1769385070660,0.001,2818.2,2816.8,5.31745299]
[1769385071289,0.18529228,2818.7,2817.3,4.42992276]
[1769385071597,0.18529228,2818.7,2817.5,4.42992276]
[1769385071892,0.18529228,2818.7,2817.6,0.88727995]
[1769385072258,4.63883881,2819.2,2817.7,4.42992276]
[1769385072489,4.63883881,2819.2,2817.8,5.96164303]
[1769385072988,0.001,2818.2,2817.8,5.96164303]
[1769385073191,4.63883881,2819.2,2817.8,5.96164303]
[1769385073769,4.63883881,2819.2,2817.9,0.88718549]
[1769385073960,5.52545795,2819.7,2817.9,5.31710825]
[1769385074161,0.5525458,2819.6,2818.0,1.03975705]
[1769385074407,5.19138461,2819.6,2818.0,1.03975705]
[1769385074871,5.19138461,2819.6,2818.0,5.46967981]
[1769385076374,5.19138461,2819.6,2818.1,5.32246066]
[1769385077079,4.51010827,2820.0,2818.1,5.32246066]
[1769385077463,5.39663424,2820.0,2818.1,5.32246066]
[1769385077866,4.51010827,2820.0,2818.1,5.32246066]
[1769385078387,5.39663543,2820.0,2818.1,5.32246066]
[1769385078686,4.51010827,2820.0,2818.1,5.32246066]
[1769385078888,4.51010827,2819.8,2818.2,0.99107078]
[1769385079065,4.51010827,2819.8,2818.3,0.743]
[1769385081596,5.39670876,2819.8,2818.4,1.6300281]
[1769385081799,4.51010827,2819.8,2818.4,1.6300281]
[1769385082092,4.51010827,2819.6,2818.5,0.51781405]
[1769385082484,4.51010827,2820.4,2818.5,4.9382103]
[1769385082698,4.51010827,2820.4,2818.6,4.42039625]
[1769385082899,5.39650985,2820.4,2818.7,4.42039625]
[1769385083572,5.39650985,2820.4,2818.8,0.88690222]
[1769385083772,4.51010827,2820.2,2818.9,0.743]
[1769385083973,4.51010827,2820.2,2818.8,2.51539296]
[1769385084769,0.001,2819.6,2818.8,2.51539296]
[1769385086498,4.51010827,2820.2,2818.8,6.92634988]
[1769385086686,5.05053892,2820.2,2818.9,1.04739588]
[1769385087306,5.05053892,2820.2,2819.0,0.743]
[1769385087689,5.05053892,2820.2,2819.1,0.88680784]
[1769385088427,4.51010827,2821.1,2819.3,4.46017407]
[1769385088601,4.51010827,2821.1,2819.5,4.46017407]
[1769385089217,4.51010827,2821.1,2819.0,0.88682005]
[1769385089916,4.51010827,2820.9,2819.0,0.88682005]
[1769385090214,4.51010827,2820.9,2818.9,4.29036326]
[1769385090215,4.51010827,2820.7,2819.1,0.51771833]
[1769385090422,4.51010827,2820.7,2818.9,1.62984897]
[1769385090423,4.51010827,2820.7,2818.9,0.88686801]
[1769385090808,4.51010827,2820.7,2818.5,1.40479827]
[1769385091013,4.51010827,2820.7,2818.6,0.88695769]
[1769385091323,4.51010827,2820.5,2818.2,3.54828084]
[1769385091618,4.51010827,2820.5,2818.4,0.88702708]
[1769385091920,4.51010827,2820.3,2818.3,0.88703853]
[1769385092090,4.51010827,2820.1,2818.4,0.51784004]
[1769385093901,4.55088437,2819.9,2818.5,0.88699662]
[1769385094417,4.55088437,2819.9,2818.4,1.40484711]
[1769385096028,4.08575003,2820.2,2818.4,1.40484711]
[1769385096029,1.42614412,2820.2,2818.5,4.46754415]
[1769385096229,4.55088437,2820.0,2818.6,0.58723913]
[1769385096525,4.55088437,2820.0,2818.4,1.40484711]
[1769385097214,4.55088437,2819.8,2818.4,1.40484711]
[1769385097425,4.55088437,2819.8,2818.4,0.51784004]
[1769385097623,4.55088437,2819.8,2817.8,0.88721417]
[1769385097797,4.55088437,2819.6,2817.3,0.88735799]
[1769385097998,4.55088437,2819.4,2817.1,0.88743743]
[1769385098223,4.55088437,2819.2,2817.3,4.46403363]
[1769385098528,4.55088437,2819.2,2817.4,4.46403363]
[1769385098711,4.55088437,2819.2,2817.5,4.46403363]
[1769385100022,0.88680784,2819.1,2817.6,0.88727995]
[1769385100318,4.55088437,2819.0,2817.6,0.88727995]
[1769385100503,4.55088437,2818.8,2817.7,0.44363998]
[1769385102230,4.55088437,2818.8,2817.8,0.88721697]
[1769385102724,4.55088437,2819.2,2817.8,0.88721697]
[1769385103931,0.54375664,2819.3,2817.8,5.34128144]
[1769385104102,5.43753893,2819.6,2817.8,5.34128144]
[1769385104306,4.55088437,2819.4,2818.0,0.887154]
[1769385106507,5.43761643,2819.4,2818.0,0.887154]
[1769385107025,5.43761643,2819.4,2817.8,0.88719423]
[1769385107210,5.43761643,2819.4,2817.9,0.88718324]
[1769385107634,5.43761643,2819.4,2817.7,3.54898151]
[1769385107941,4.55088437,2819.2,2817.8,1.24209005]
[1769385108442,0.88680784,2819.1,2817.8,0.35489815]
[1769385108647,1.83958381,2819.3,2818.1,0.002]
[1769385108951,5.43764575,2819.3,2818.1,0.002]
[1769385116270,4.55088437,2819.2,2818.1,0.002]
[1769385118116,4.55088437,2819.0,2818.1,0.002]
[1769385119356,4.55088437,2819.0,2817.9,0.002]
[1769385119654,4.55088437,2818.8,2817.9,0.002]
[1769385120156,4.55088437,2818.6,2817.9,0.002]
[1769385120357,4.55088437,2818.6,2816.9,0.002]
[1769385120548,4.55088437,2818.6,2816.9,0.88949509]
[1769385121058,4.55088437,2818.6,2817.0,4.14885351]
[1769385121229,5.44943965,2818.6,2818.3,0.001]
[1769385121430,5.44943965,2818.6,2817.2,4.14885351]
[1769385121431,5.44943965,2818.6,2818.0,0.002]
[1769385122259,0.89855528,2818.6,2818.0,0.002]
[1769385122555,5.43778828,2818.8,2818.0,0.002]
[1769385123128,4.55088437,2818.8,2818.0,0.002]
[1769385125699,4.52043993,2819.8,2818.2,3.47836643]
[1769385125905,4.39243993,2819.8,2818.3,3.82620307]
[1769385126041,4.39243993,2819.8,2818.4,3.45656549]
[1769385126241,0.001,2819.9,2818.4,3.45656549]
[1769385126242,0.001,2819.9,2818.6,3.45656549]
[1769385126749,0.001,2819.9,2818.8,3.45656549]
[1769385126944,4.39243993,2820.5,2819.1,3.43501953]
[1769385127186,0.51354399,2820.4,2819.2,0.34350195]
[1769385128466,0.51354399,2820.4,2819.3,0.88674493]
[1769385128853,0.51354399,2820.4,2819.2,0.34350195]
[1769385128854,4.90598392,2820.4,2819.2,0.34350195]
[1769385129062,4.90598392,2820.4,2818.8,3.3917113]
[1769385129063,4.39243993,2820.4,2818.8,3.3917113]
[1769385129462,5.27884129,2820.4,2819.0,0.88682424]
[1769385129874,5.27884129,2820.4,2818.8,0.88687711]
[1769385130457,5.27884129,2820.4,2818.5,0.88699662]
[1769385130647,4.39243993,2820.2,2818.6,0.78058984]
[1769385132149,4.39243993,2820.6,2818.8,3.33003711]
[1769385132466,4.39243993,2821.0,2819.3,3.33003711]
[1769385132667,0.0196476,2821.2,2819.3,3.33003711]
[1769385132851,4.94220671,2821.2,2819.5,3.33003711]
[1769385133050,5.82835529,2821.2,2819.5,3.33003711]
[1769385133249,5.82835529,2821.2,2819.4,1.42168135]
[1769385133250,4.39243993,2821.1,2819.4,1.42168135]
[1769385133461,0.001,2820.2,2819.2,0.88677639]
[1769385135182,0.001,2820.2,2818.8,6.81801251]
[1769385135593,4.39343993,2820.2,2818.8,3.54755432]
[1769385135979,4.39343993,2820.2,2818.8,0.88690222]
[1769385136291,0.43934399,2820.1,2818.9,0.44345111]
[1769385137022,4.55910822,2820.1,2818.9,0.44345111]
[1769385137169,4.55910822,2820.1,2818.8,0.88690222]
[1769385137517,4.55910822,2820.1,2818.7,0.88692092]
[1769385137518,4.11976423,2819.9,2818.7,0.88692092]
[1769385138802,0.001,2820.2,2818.8,3.19424348]
[1769385139279,4.12076423,2820.2,2818.9,0.88687076]
[1769385139481,4.11976423,2820.1,2819.0,0.76285973]
[1769385139685,4.11976423,2820.1,2818.8,0.8868833]
[1769385140515,0.001,2820.2,2818.8,4.0443175]
[1769385141916,4.12076423,2820.2,2818.8,4.0443175]
[1769385142116,4.12076423,2820.2,2818.8,0.88688034]
[1769385142325,4.11976423,2820.0,2818.9,0.4434519]
[1769385142641,0.41207642,2820.1,2818.9,0.4434519]
[1769385142811,0.001,2820.2,2818.9,0.4434519]
[1769385143023,4.12076423,2820.2,2818.9,0.4434519]
[1769385143703,4.12076423,2820.2,2819.0,0.8868393]
[1769385145792,0.001,2820.0,2819.0,0.8868393]
[1769385147430,0.001,2820.0,2819.1,3.03514611]
[1769385147733,0.001,2820.0,2819.3,0.88674493]
[1769385148121,0.88627505,2820.8,2819.3,0.88674493]
[1769385148122,4.11976423,2820.8,2819.3,0.88674493]
[1769385148998,5.02858609,2821.2,2819.5,3.00096145]
[1769385149200,4.14241183,2821.2,2819.5,3.74396145]
[1769385149634,4.14241183,2821.2,2819.7,3.00096145]
[1769385149804,4.55695301,2821.2,2819.8,0.3887612]
[1769385151536,4.11976423,2821.1,2819.8,0.3887612]
[1769385151705,4.11976423,2821.1,2819.9,0.88655626]
[1769385154441,5.00594597,2821.1,2819.9,0.88655626]
[1769385154638,5.00594597,2821.1,2819.8,1.27533079]
[1769385154846,4.2350533,2820.9,2819.7,0.88661772]
[1769385155225,4.2350533,2820.9,2819.4,0.88670912]
[1769385155653,4.2350533,2820.9,2819.3,3.54696997]
[1769385155839,4.2350533,2820.7,2819.3,0.88674493]
[1769385156020,4.2350533,2820.5,2819.3,1.36934566]
[1769385156217,4.2350533,2820.5,2819.3,0.48260073]
[1769385156424,4.2350533,2820.5,2819.1,0.88679259]
[1769385156649,4.2350533,2820.5,2819.2,0.8867737]
[1769385156855,4.2350533,2820.5,2819.1,0.88679693]
[1769385157043,4.2350533,2820.5,2819.0,0.88681956]
[1769385157223,4.2350533,2820.5,2819.2,0.88676762]
[1769385157424,0.4747186,2820.4,2819.3,0.44338732]
[1769385157729,4.7097719,2820.4,2819.3,0.44338732]
[1769385158040,4.7097719,2820.4,2819.3,1.33011003]
[1769385158239,4.2350533,2820.3,2819.1,0.88678842]
[1769385158462,4.2350533,2820.3,2819.0,3.54931598]
[1769385158758,4.2350533,2820.3,2819.0,0.88882145]
[1769385158963,4.2350533,2820.3,2819.1,0.88680278]
[1769385159161,4.2350533,2820.1,2819.1,0.48797122]
[1769385159464,4.2350533,2820.1,2819.1,1.37477492]
[1769385159628,4.2350533,2820.1,2819.1,0.48797122]
[1769385159829,4.2350533,2820.1,2819.0,0.002]
[1769385160125,5.12155185,2820.1,2819.0,0.88883525]
[1769385160451,4.2350533,2820.1,2819.0,0.002]
[1769385165755,0.001,2820.4,2819.0,2.7497746]
[1769385165982,4.2360533,2820.4,2819.0,2.7497746]
[1769385166181,4.2360533,2820.4,2819.1,0.40800792]
[1769385166384,4.2360533,2820.4,2819.1,3.14237311]
[1769385166547,4.2360533,2820.4,2819.2,3.62114158]
[1769385166745,0.001,2820.4,2819.2,3.62114158]
[1769385170580,4.2360533,2820.4,2819.3,0.743]
[1769385170778,4.65965863,2820.4,2819.5,0.88668203]
[1769385171389,4.2360533,2820.4,2819.5,0.88668203]
[1769385174176,4.2350533,2820.2,2819.4,0.002]
[1769385177281,5.12152261,2820.2,2819.4,0.002]
[1769385179796,4.2350533,2820.2,2819.4,0.002]
[1769385181179,5.1215177,2820.2,2819.4,0.002]
[1769385181908,5.1215177,2820.2,2819.0,0.002]
[1769385182072,4.2350533,2820.0,2819.0,0.002]
[1769385182977,4.2350533,2820.0,2818.5,0.002]
[1769385183303,3.94193886,2819.8,2818.5,0.002]
[1769385184691,3.94193886,2819.8,2819.2,0.002]
[1769385185316,4.82853445,2819.8,2819.2,0.002]
[1769385185495,0.83748735,2819.7,2819.2,0.002]
[1769385185701,3.94193886,2819.9,2819.2,0.002]
[1769385189323,4.82849543,2819.9,2819.2,0.002]
[1769385189529,4.82849543,2819.9,2818.5,0.002]
[1769385190224,3.94193886,2819.8,2818.3,0.00100395]
[1769385190393,0.98667636,2819.9,2818.3,0.00100395]
[1769385190394,3.94193886,2819.6,2818.3,0.00100395]
[1769385190602,3.94193886,2819.4,2818.3,0.00100395]
[1769385191297,3.94193886,2819.2,2817.8,0.002]
[1769385193533,3.94193886,2819.0,2817.8,0.002]
[1769385193727,3.94193886,2818.8,2817.8,0.002]
[1769385195613,4.82885769,2818.8,2817.8,0.002]
[1769385196018,3.94193886,2818.8,2817.8,0.002]
[1769385196941,0.48287467,2818.9,2817.8,0.002]
[1769385197111,3.813791,2819.4,2817.8,2.37925241]
[1769385197511,5.19328871,2819.7,2818.0,2.37725241]
[1769385197736,3.813791,2819.6,2818.0,2.37725241]
[1769385197942,3.813791,2819.6,2818.0,0.002]
[1769385198145,3.813791,2819.4,2818.0,0.002]
[1769385199522,0.88674493,2819.3,2818.0,0.002]
[1769385199745,3.813791,2819.2,2818.0,0.002]
[1769385201745,3.813791,2819.0,2818.0,0.002]
[1769385203247,3.813791,2818.9,2817.8,0.002]
[1769385203439,4.28385088,2818.9,2817.8,0.002]
[1769385204015,3.813791,2818.7,2817.8,0.002]
[1769385206121,3.813791,2818.5,2817.8,0.002]
[1769385206322,4.70069896,2818.8,2817.8,0.002]
[1769385206518,5.21777484,2818.8,2817.8,0.002]
[1769385206845,3.813791,2818.7,2817.8,0.002]
[1769385209760,3.813791,2818.5,2818.0,0.002]
[1769385210064,3.813791,2818.5,2817.8,0.002]
[1769385210249,3.813791,2818.5,2816.9,0.88947793]
[1769385210438,0.88696516,2818.6,2816.9,0.88948223]
[1769385210439,3.813791,2818.3,2816.9,0.88948223]
[1769385210638,3.813791,2818.3,2817.0,0.88746645]
[1769385211368,3.813791,2818.3,2816.9,0.002]
[1769385211669,3.813791,2818.1,2816.6,0.002]
[1769385211970,3.813791,2817.9,2816.6,0.002]
[1769385212342,3.813791,2817.9,2816.6,0.001]
[1769385212669,3.813791,2817.6,2815.9,0.99901184]
[1769385212974,3.813791,2817.4,2815.9,0.99901184]
[1769385213191,3.92215842,2817.2,2815.9,0.99901184]
[1769385213850,3.92215842,2817.0,2815.9,0.99901184]
[1769385214253,3.92215842,2817.0,2815.9,0.99701184]
[1769385214457,3.92215842,2817.0,2815.9,0.99001184]
[1769385214674,3.92215842,2817.0,2815.9,0.79172502]
[1769385214855,3.92215842,2816.8,2814.9,0.8542369]
[1769385215180,3.92215842,2816.8,2815.0,3.5522948]
[1769385215381,3.92215842,2816.8,2815.0,0.88808163]
[1769385215555,3.92215842,2816.8,2815.0,0.8880882]
[1769385215752,0.88756346,2816.7,2814.7,0.002]
[1769385215979,4.36594015,2816.6,2814.8,0.3554874]
[1769385216477,3.92215842,2816.4,2814.8,0.3554874]
[1769385216777,3.92215842,2816.4,2814.8,2.57315391]
[1769385217155,2.37,2816.4,2814.8,0.3554874]
[1769385217340,3.92215842,2816.3,2814.8,0.3554874]
[1769385217546,3.92215842,2816.1,2814.7,0.002]
[1769385218067,4.80994251,2816.0,2814.7,0.002]
[1769385218446,3.92215842,2816.0,2814.7,0.002]
[1769385219581,1.51696246,2816.2,2814.7,3.20619384]
[1769385219874,0.62921584,2816.2,2814.7,3.10619384]
[1769385220081,1.516941,2816.2,2814.8,3.41368803]
[1769385220457,0.62921584,2816.2,2814.9,3.99119966]
[1769385220649,3.92215842,2817.1,2815.0,3.10306865]
[1769385220847,4.80959735,2817.1,2815.1,3.1003616]
[1769385221054,4.80960514,2817.1,2815.3,3.1003616]
[1769385221275,3.92215842,2817.1,2815.3,3.1003616]
[1769385221478,0.48095827,2817.0,2815.5,3.1003616]
[1769385221865,0.001,2816.4,2815.5,3.1003616]
[1769385222481,0.001,2816.4,2815.6,3.98559575]
[1769385222853,0.001,2816.4,2815.7,3.09768554]
[1769385224085,0.001,2816.4,2815.6,0.88791021]
[1769385224265,0.001,2816.4,2815.7,0.44395511]
[1769385225285,0.001,2816.4,2815.7,1.33180421]
[1769385226181,0.001,2816.4,2815.7,0.44395511]
[1769385226354,0.001,2816.4,2815.7,1.33182086]
[1769385228385,3.92215842,2817.2,2815.8,3.08116799]
[1769385228587,0.35493994,2817.3,2816.0,3.08116799]
[1769385228783,3.92215842,2817.5,2816.0,3.08116799]
[1769385229156,3.92215842,2817.3,2815.9,1.32910781]
[1769385229369,3.92215842,2817.3,2815.9,0.44129889]
[1769385229588,3.92215842,2817.3,2815.9,1.32909834]
[1769385229756,3.92215842,2817.1,2815.9,1.32909834]
[1769385230281,3.92215842,2817.1,2815.9,0.44129889]
[1769385230470,3.92215842,2817.1,2815.7,1.33181169]
[1769385230978,3.92215842,2817.1,2815.8,0.88784498]
[1769385232562,4.80960956,2817.1,2815.8,0.88784714]
[1769385232767,4.80960956,2817.1,2815.7,1.3318157]
[1769385232967,4.80960956,2817.1,2815.7,0.44395511]
[1769385233166,3.92215842,2816.9,2815.7,0.88785359]
[1769385234181,3.92215842,2816.9,2814.9,0.002]
[1769385234396,3.92215842,2816.5,2814.9,0.002]
[1769385234701,3.92215842,2816.1,2815.0,0.002]
[1769385234858,3.92215842,2815.9,2815.0,0.002]
[1769385236869,3.92215842,2815.9,2814.6,0.002]
[1769385236870,3.92215842,2815.7,2814.6,0.002]
[1769385237100,0.128,2815.6,2814.1,0.00100197]
[1769385237304,3.92215842,2815.5,2814.1,0.00100197]
[1769385237465,3.92215842,2815.3,2814.1,0.00100197]
[1769385237661,3.92215842,2815.1,2814.1,0.00100197]
[1769385238782,4.81025788,2815.0,2814.1,0.00100197]
[1769385238995,3.92215842,2815.0,2814.1,0.00100197]
[1769385240606,5.21515624,2815.4,2814.1,0.00100197]
[1769385240780,4.8101404,2815.4,2814.1,0.00100197]
[1769385242790,4.8101404,2815.4,2813.4,3.55440179]
[1769385242994,4.8101404,2815.4,2813.5,3.04606928]
[1769385243707,3.92215842,2815.4,2813.5,3.04606928]
[1769385243902,4.27238795,2815.3,2813.6,3.70184081]
[1769385245026,4.27238795,2815.3,2813.7,3.95498407]
[1769385245426,4.27238795,2815.3,2813.8,3.0396782]
[1769385245930,5.16039549,2815.3,2813.8,3.0396782]
[1769385246139,4.27238795,2815.3,2813.8,3.0396782]
[1769385246333,3.79297211,2815.3,2813.9,3.43040019]
[1769385247125,3.79297211,2815.3,2814.3,0.002]
[1769385247942,3.79297211,2815.6,2814.3,0.002]
[1769385249046,3.79297211,2815.6,2814.3,3.03343035]
[1769385249271,0.88772228,2816.2,2814.5,3.03143035]
[1769385249414,0.88772228,2816.2,2814.4,0.8882888]
[1769385249415,4.14805616,2816.2,2814.6,3.42340226]
[1769385249745,4.14805616,2816.2,2814.6,0.39197191]
[1769385249944,4.14805616,2816.2,2814.4,3.91775252]
[1769385250328,4.14805616,2816.2,2814.4,0.8882888]
[1769385251521,3.79297211,2816.0,2814.3,3.5551552]
[1769385251959,3.79297211,2816.0,2814.3,0.89032036]
[1769385252339,3.79297211,2815.8,2814.3,0.002]
[1769385252848,3.79297211,2815.8,2814.3,3.0275061]
[1769385253266,3.79297211,2815.8,2814.3,0.002]
[1769385253929,3.79297211,2815.8,2814.3,3.02369587]
[1769385254530,0.47938469,2816.0,2814.3,3.02369587]
[1769385254754,0.47938469,2816.0,2814.5,3.02169587]
[1769385255138,3.79297211,2815.9,2814.5,3.02169587]
[1769385255741,3.79297211,2815.9,2814.6,3.90802858]
[1769385256823,4.0639017,2816.2,2814.7,3.01423286]
[1769385257029,0.35508405,2816.2,2814.8,3.40447871]
[1769385257239,4.59644915,2816.5,2814.8,3.40447871]
[1769385257660,3.70881765,2816.5,2814.9,0.88813101]
[1769385257833,3.70881765,2816.5,2815.0,3.01423286]
[1769385258231,4.59644473,2816.5,2815.0,3.01423286]
[1769385258549,3.70881765,2816.5,2815.0,3.01423286]
[1769385258857,0.53404307,2816.4,2815.1,0.39023639]
[1769385259367,3.70881765,2816.5,2815.1,3.4008492]
[1769385259964,0.001,2816.3,2815.2,0.88803637]
[1769385260741,3.70981765,2816.3,2815.1,1.27828459]
[1769385263549,4.59751071,2816.3,2815.1,1.27828459]